[Event "7th Capablanca Memorial GM 2019"]
[Site "Anogia"]
[Date "2019.09.15"]
[Round "5.2"]
[White "Anagnostopoulos, Konstantinos"]
[Black "Patrelakis, Evaggelos"]
[Result "1-0"]
[ECO "A27"]
[WhiteElo "2322"]
[BlackElo "2202"]
[Annotator "NA"]
[PlyCount "71"]
[EventDate "2019.09.11"]
[EventType "tourn"]
[EventCountry "GRE"]
[SourceTitle "playchess.com"]
[Source "ChessBase"]
[SourceQuality "1"]
[TimeControl "40/5400+30:1800+30"]

1. c4 {[%emt 0:00:00]} e5 {[%emt 0:00:00]} 2. Nc3 {[%emt 0:00:00]} Nc6 {[%emt 0:00:04]} 3. Nf3 {[%emt 0:00:00]} g6 {[%emt 0:00:09]} 4. d4 {[%emt 0:02:35]} exd4 {[%emt 0:00:08]} 5. Nxd4 {[%emt 0:00:04]} Bg7 {[%emt 0:00:14]} 6. Nxc6 {[%emt 0:00:08]} bxc6 {[%emt 0:00:13]} 7. g3 {[%emt 0:00:18]} Ne7 {[%emt 0:00:21]} 8. Bg2 {[%emt 0:00:05]} O-O {[%emt 0:00:32]} 9. O-O {[%emt 0:00:12]} Rb8 {[%emt 0:00:38]} 10. Qd2 {[%emt 0:06:20]} a5 {[%emt 0:08:06]} 11. Rb1 {[%emt 0:09:02]} d6 {[%emt 0:02:48]} 12. b3 {[%emt 0:00:40]} Be6 {[%emt 0:06:06]} 13. Bb2 {[%emt 0:01:13]} f5 {[%emt 0:22:14]} 14. f4 {[%emt 0:07:27]} d5 {[%emt 0:12:33]} 15. cxd5 {[%emt 0:02:47]} cxd5 {[%emt 0:04:59]} 16. Na4 {[%emt 0:01:42]} Bxb2 {[%emt 0:01:16]} 17. Rxb2 {[%emt 0:00:23]} c6 {[%emt 0:00:14]} 18. Rc2 {[%emt 0:03:05]} Rb5 {[%emt 0:02:30]} 19. e3 {[%emt 0:00:50]} Bf7 {[%emt 0:00:58]} 20. Rfc1 {[%emt 0:00:23]} Qd6 {[%emt 0:01:57]} 21. Nc5 {[%emt 0:08:36]} Ra8 {[%emt 0:04:18]} 22. Bh3 {[%emt 0:11:40]} Rb6 {[%emt 0:04:46]} 23. e4 {[%emt 0:09:11]} fxe4 {[%emt 0:02:26]} 24. Nxe4 {[%emt 0:00:21]} Qb4 {[%emt 0:03:57]} 25. Nf6+ {[%emt 0:00:20]} Kh8 {[%emt 0:05:37]} 26. Qe3 {[%emt 0:02:26]} Rb7 {[%emt 0:02:48]} 27. Qe5 {[%emt 0:06:15]} Qb6+ {[%emt 0:00:07]} 28. Rc5 {[%emt 0:00:48]} Qc7 {[%emt 0:00:10]} 29. Qb2 {[%emt 0:00:38]} d4 {[%emt 0:01:18]} 30. Qxd4 {[%emt 0:00:05]} Rb4 {[%emt 0:02:27]} 31. R1c4 {[%emt 0:03:30]} Qd8 {[%emt 0:04:19]} 32. Rxb4 {[%emt 0:07:24]} axb4 {[%emt 0:00:03]} 33. Bd7 {[%emt 0:00:40]} Qf8 {[%emt 0:00:21]} 34. Re5 {[%emt 0:10:07]} Ng8 {[%emt 0:02:14]} 35. Ne8 {[%emt 0:03:18]} h6 {[%emt 0:00:30]} 36. Ra5+ {[%emt 0:00:08]} 1-0

[Event "7th Capablanca Memorial GM 2019"]
[Site "Anogia"]
[Date "2019.09.15"]
[Round "5.3"]
[White "Manish Anto Cristiano F"]
[Black "Audi Ameya"]
[Result "0-1"]
[ECO "B47"]
[WhiteElo "2364"]
[BlackElo "2329"]
[Annotator "NA"]
[PlyCount "76"]
[EventDate "2019.09.11"]
[EventType "tourn"]
[EventCountry "GRE"]
[SourceTitle "playchess.com"]
[Source "ChessBase"]
[SourceQuality "1"]
[TimeControl "40/5400+30:1800+30"]

1. e4 {[%emt 0:00:00]} c5 {[%emt 0:00:00]} 2. Nf3 {[%emt 0:00:08]} e6 {[%emt 0:00:00]} 3. d4 {[%emt 0:00:25]} cxd4 {[%emt 0:00:00]} 4. Nxd4 {[%emt 0:00:32]} Nc6 {[%emt 0:00:00]} 5. Nc3 {[%emt 0:00:30]} Qc7 {[%emt 0:00:00]} 6. g3 {[%emt 0:00:28]} a6 {[%emt 0:01:31]} 7. Bg2 {[%emt 0:00:29]} Nf6 {[%emt 0:00:07]} 8. O-O {[%emt 0:00:33]} Bc5 {[%emt 0:00:14]} 9. Be3 {[%emt 0:01:03]} Ne5 {[%emt 0:00:31]} 10. h3 {[%emt 0:08:05]} d6 {[%emt 0:05:57]} 11. Qe2 {[%emt 0:01:54]} Ba7 {[%emt 0:01:05]} 12. Rad1 {[%emt 0:06:19]} Bd7 {[%emt 0:00:41]} 13. Kh1 {[%emt 0:01:22]} Rc8 {[%emt 0:21:48]} 14. g4 {[%emt 0:08:59]} h6 {[%emt 0:03:13]} 15. f4 {[%emt 0:04:36]} Nc4 {[%emt 0:00:02]} 16. Bc1 {[%emt 0:00:14]} Qa5 {[%emt 0:04:42]} 17. Nb1 {[%emt 0:07:15]} O-O {[%emt 0:21:34]} 18. b3 {[%emt 0:08:42]} Qxa2 {[%emt 0:04:33]} 19. bxc4 {[%emt 0:02:16]} Qxb1 {[%emt 0:00:04]} 20. Nb3 {[%emt 0:00:34]} Qa2 {[%emt 0:05:57]} 21. e5 {[%emt 0:03:02]} Ne8 {[%emt 0:01:09]} 22. Bxb7 {[%emt 0:05:39]} Rc7 {[%emt 0:02:48]} 23. Bg2 {[%emt 0:01:46]} d5 {[%emt 0:00:50]} 24. cxd5 {[%emt 0:10:35]} Rxc2 {[%emt 0:00:52]} 25. Rd2 {[%emt 0:13:07]} Rxd2 {[%emt 0:00:16]} 26. Nxd2 {[%emt 0:00:17]} Bb5 {[%emt 0:00:02]} 27. Qf3 {[%emt 0:00:15]} Bxf1 {[%emt 0:00:10]} 28. Nxf1 {[%emt 0:00:09]} Nc7 {[%emt 0:01:15]} 29. d6 {[%emt 0:00:14]} Nd5 {[%emt 0:03:35]} 30. Bd2 {[%emt 0:00:25]} a5 {[%emt 0:04:34]} 31. Qd3 {[%emt 0:02:35]} a4 {[%emt 0:01:20]} 32. f5 {[%emt 0:02:06]} Qb3 {[%emt 0:02:30]} 33. Qe4 {[%emt 0:06:13]} a3 {[%emt 0:06:11]} 34. fxe6 {[%emt 0:01:52]} fxe6 {[%emt 0:00:03]} 35. Qg6 {[%emt 0:00:14]} Qb6 {[%emt 0:02:40]} 36. Qxe6+ {[%emt 0:01:16]} Kh8 {[%emt 0:00:02]} 37. Kh2 {[%emt 0:00:15]} Qg1+ {[%emt 0:00:10]} 38. Kg3 {[%emt 0:00:08]} Bf2# {[%emt 0:00:03]} 0-1

[Event "7th Capablanca Memorial GM 2019"]
[Site "Anogia"]
[Date "2019.09.15"]
[Round "5.4"]
[White "Dushyant Sharma"]
[Black "Mirzoev, Emil"]
[Result "1/2-1/2"]
[ECO "C03"]
[WhiteElo "2242"]
[BlackElo "2477"]
[Annotator "ChessBase"]
[PlyCount "122"]
[EventDate "2019.09.11"]
[EventType "tourn"]
[EventCountry "GRE"]
[SourceTitle "playchess.com"]
[Source "ChessBase"]
[SourceQuality "1"]
[TimeControl "40/5400+30:1800+30"]

1. e4 {[%emt 0:00:00]} e6 {[%emt 0:16:38]} 2. d4 {[%emt 0:00:00]} d5 {[%emt 0:00:04]} 3. Nd2 {[%emt 0:00:05]} h6 {[%emt 0:00:53]} 4. Ngf3 {[%emt 0:03:21]} Nf6 {[%emt 0:00:12]} 5. e5 {[%emt 0:05:23]} Nfd7 {[%emt 0:00:10]} 6. c4 {[%emt 0:01:48]} dxc4 {[%emt 0:01:07]} 7. Nxc4 {[%emt 0:00:55]} Nb6 {[%emt 0:00:19]} 8. Nxb6 {[%emt 0:08:49]} axb6 {[%emt 0:00:45]} 9. Bc4 {[%emt 0:01:22]} Bb4+ {[%emt 0:02:33]} 10. Bd2 {[%emt 0:03:19]} Nc6 {[%emt 0:01:02]} 11. Bc3 {[%emt 0:02:16]} O-O {[%emt 0:02:47]} 12. O-O {[%emt 0:05:00]} Bd7 {[%emt 0:01:16]} 13. Bb3 {[%emt 0:03:04]} Ba5 {[%emt 0:06:01]} 14. Qd2 {[%emt 0:03:14]} b5 {[%emt 0:02:55]} 15. Bc2 {[%emt 0:01:54]} Qe7 {[%emt 0:01:44]} 16. Rfe1 {[%emt 0:05:25]} Bxc3 {[%emt 0:07:36]} 17. bxc3 {[%emt 0:00:43]} Ra3 {[%emt 0:00:21]} 18. Rab1 {[%emt 0:02:55]} Rd8 {[%emt 0:06:46]} 19. h4 {[%emt 0:08:58]} Be8 {[%emt 0:04:01]} 20. Re4 {[%emt 0:06:33]} Kh8 {[%emt 0:08:42]} 21. Rg4 {[%emt 0:03:52]} b4 {[%emt 0:05:05]} 22. cxb4 {[%emt 0:09:20]} Rxf3 {[%emt 0:01:23]} 23. gxf3 {[%emt 0:02:48]} Nxe5 {[%emt 0:00:09]} 24. Rg3 {[%emt 0:01:21]} Qxh4 {[%emt 0:01:18]} 25. Qc3 {[%emt 0:07:04]} Qxd4 {[%emt 0:05:11]} 26. Qxc7 {[%emt 0:01:03]} Rd7 {[%emt 0:07:05]} 27. Qb8 {[%emt 0:01:16]} Rd8 {[%emt 0:00:12]} 28. Qc7 {[%emt 0:07:53]} Rd7 {[%emt 0:03:28]} 29. Qc5 {[%emt 0:00:25]} Qxc5 {[%emt 0:03:28]} 30. bxc5 {[%emt 0:00:02]} Rc7 {[%emt 0:00:01]} 31. Be4 {[%emt 0:00:31]} Rxc5 {[%emt 0:05:04]} 32. Rxb7 {[%emt 0:00:14]} Kg8 {[%emt 0:00:38]} 33. f4 {[%emt 0:00:33]} Nd7 {[%emt 0:01:14]} 34. Ra3 {[%emt 0:01:15]} Nf6 {[%emt 0:00:53]} 35. Ra8 {[%emt 0:01:14]} g5 {[%emt 0:01:18]} 36. a4 {[%emt 0:01:54]} Kg7 {[%emt 0:01:25]} 37. Bf3 {[%emt 0:01:20]} Rc1+ {[%emt 0:00:56]} 38. Kg2 {[%emt 0:00:49]} g4 {[%emt 0:00:43]} 39. Bxg4 {[%emt 0:00:06]} Bc6+ {[%emt 0:00:54]} 40. Bf3 {[%emt 0:00:00]} Bxb7 {[%emt 0:00:00]} 41. Bxb7 {[%emt 0:00:04]} Nd5 {[%emt 0:05:11]} 42. Bxd5 {[%emt 0:02:24]} exd5 {[%emt 0:00:18]} 43. a5 {[%emt 0:00:29]} Ra1 {[%emt 0:00:49]} 44. a6 {[%emt 0:00:07]} Kf6 {[%emt 0:00:29]} 45. Rh8 {[%emt 0:00:44]} Kf5 {[%emt 0:00:46]} 46. Ra8 {[%emt 0:04:26]} Kxf4 {[%emt 0:00:50]} 47. a7 {[%emt 0:00:16]} f5 {[%emt 0:00:51]} 48. Rd8 {[%emt 0:00:41]} Rxa7 {[%emt 0:00:03]} 49. Rxd5 {[%emt 0:00:13]} Rg7+ {[%emt 0:00:29]} 50. Kh2 {[%emt 0:00:57]} Ke4 {[%emt 0:00:45]} 51. Ra5 {[%emt 0:02:34]} f4 {[%emt 0:02:48]} 52. Ra3 {[%emt 0:00:13]} f3 {[%emt 0:01:01]} 53. Kh3 {[%emt 0:05:16]} Rg1 {[%emt 0:01:05]} 54. Ra2 {[%emt 0:01:31]} h5 {[%emt 0:01:11]} 55. Kh2 {[%emt 0:01:13]} Rg5 {[%emt 0:01:33]} 56. Kh3 {[%emt 0:00:53]} Rg2 {[%emt 0:00:03]} 57. Rb2 {[%emt 0:00:34]} Kd3 {[%emt 0:00:05]} 58. Ra2 {[%emt 0:00:23]} Rg4 {[%emt 0:00:08]} 59. Rb2 {[%emt 0:00:25]} Ra4 {[%emt 0:01:56]} 60. Kg3 {[%emt 0:00:42]} Ke4 {[%emt 0:00:18]} 61. Rb3 {[%emt 0:01:23]} Ke5 {[%emt 0:00:17]} 1/2-1/2

[Event "7th Capablanca Memorial GM 2019"]
[Site "Anogia"]
[Date "2019.09.15"]
[Round "5.5"]
[White "David, Alberto"]
[Black "Osmak, Iulija"]
[Result "1/2-1/2"]
[ECO "A34"]
[WhiteElo "2533"]
[BlackElo "2408"]
[Annotator "ChessBase"]
[PlyCount "100"]
[EventDate "2019.09.11"]
[EventType "tourn"]
[EventCountry "GRE"]
[SourceTitle "playchess.com"]
[Source "ChessBase"]
[SourceQuality "1"]
[TimeControl "40/5400+30:1800+30"]

1. c4 {[%emt 0:00:00]} e6 {[%emt 0:00:23]} 2. g3 {[%emt 0:02:24]} Nf6 {[%emt 0:01:24]} 3. Bg2 {[%emt 0:00:14]} d5 {[%emt 0:00:09]} 4. Nf3 {[%emt 0:01:20]} Be7 {[%emt 0:00:13]} 5. O-O {[%emt 0:01:05]} O-O {[%emt 0:00:07]} 6. d3 {[%emt 0:03:03]} c5 {[%emt 0:03:11]} 7. cxd5 {[%emt 0:12:09]} Nxd5 {[%emt 0:04:57]} 8. Nc3 {[%emt 0:08:47]} Nc6 {[%emt 0:02:09]} 9. Bd2 {[%emt 0:03:40]} b6 {[%emt 0:08:09]} 10. d4 {[%emt 0:08:18]} Nxd4 {[%emt 0:07:14]} 11. Nxd4 {[%emt 0:00:43]} cxd4 {[%emt 0:00:05]} 12. Nxd5 {[%emt 0:00:24]} exd5 {[%emt 0:00:07]} 13. Qa4 {[%emt 0:02:11]} Bf6 {[%emt 0:05:38]} 14. Rfe1 {[%emt 0:12:52]} Bf5 {[%emt 0:06:58]} 15. Rac1 {[%emt 0:03:40]} Re8 {[%emt 0:03:47]} 16. Qb3 {[%emt 0:01:09]} Be4 {[%emt 0:08:20]} 17. Bh3 {[%emt 0:01:09]} h6 {[%emt 0:00:40]} 18. Bf4 {[%emt 0:07:09]} Bg5 {[%emt 0:12:00]} 19. Bxg5 {[%emt 0:01:01]} Qxg5 {[%emt 0:00:08]} 20. Qd1 {[%emt 0:02:46]} Qf6 {[%emt 0:06:54]} 21. Qd2 {[%emt 0:02:56]} Re7 {[%emt 0:03:22]} 22. Rcd1 {[%emt 0:10:16]} Rc7 {[%emt 0:00:45]} 23. Qxd4 {[%emt 0:00:06]} Qxd4 {[%emt 0:00:07]} 24. Rxd4 {[%emt 0:00:02]} Rc2 {[%emt 0:00:09]} 25. f3 {[%emt 0:06:40]} Bg6 {[%emt 0:00:09]} 26. Rb4 {[%emt 0:03:07]} Re8 {[%emt 0:03:31]} 27. Bf1 {[%emt 0:01:24]} Bd3 {[%emt 0:02:44]} 28. Kf2 {[%emt 0:02:07]} Re6 {[%emt 0:03:37]} 29. Rd4 {[%emt 0:01:36]} Bb5 {[%emt 0:00:43]} 30. b3 {[%emt 0:01:04]} Rxa2 {[%emt 0:00:31]} 31. Rxd5 {[%emt 0:00:04]} a6 {[%emt 0:01:30]} 32. Rd8+ {[%emt 0:01:13]} Kh7 {[%emt 0:01:02]} 33. Rc8 {[%emt 0:00:38]} Rb2 {[%emt 0:01:35]} 34. Rc7 {[%emt 0:00:05]} Rxb3 {[%emt 0:08:00]} 35. Rxf7 {[%emt 0:00:03]} Rb2 {[%emt 0:00:25]} 36. h4 {[%emt 0:00:56]} a5 {[%emt 0:01:16]} 37. h5 {[%emt 0:00:36]} Be8 {[%emt 0:01:29]} 38. Ra7 {[%emt 0:00:43]} Bxh5 {[%emt 0:02:14]} 39. Rc1 {[%emt 0:00:10]} Rf6 {[%emt 0:01:05]} 40. Rcc7 {[%emt 0:00:00]} Bxf3 {[%emt 0:00:00]} 41. Kg1 {[%emt 0:21:12]} Rb1 {[%emt 0:25:11]} 42. exf3 {[%emt 0:01:57]} Rxf3 {[%emt 0:00:15]} 43. Rxg7+ {[%emt 0:01:21]} Kh8 {[%emt 0:00:02]} 44. Rh7+ {[%emt 0:04:48]} Kg8 {[%emt 0:00:05]} 45. Rhg7+ {[%emt 0:00:05]} Kf8 {[%emt 0:01:57]} 46. Rgb7 {[%emt 0:00:03]} Rbxf1+ {[%emt 0:03:34]} 47. Kg2 {[%emt 0:00:05]} Rf7 {[%emt 0:01:29]} 48. Ra8+ {[%emt 0:00:05]} Kg7 {[%emt 0:00:03]} 49. Rxb6 {[%emt 0:00:03]} h5 {[%emt 0:01:42]} 50. Rb2 {[%emt 0:00:06]} R1f5 {[%emt 0:00:26]} 1/2-1/2

[Event "7th Capablanca Memorial GM 2019"]
[Site "Anogia"]
[Date "2019.09.16"]
[Round "6.1"]
[White "Moiseenko, Vadim"]
[Black "Osmak, Iulija"]
[Result "1/2-1/2"]
[ECO "A05"]
[WhiteElo "2543"]
[BlackElo "2408"]
[Annotator "ChessBase"]
[PlyCount "21"]
[EventDate "2019.09.11"]
[EventType "tourn"]
[EventCountry "GRE"]
[SourceTitle "playchess.com"]
[Source "ChessBase"]
[SourceQuality "1"]
[TimeControl "40/5400+30:1800+30"]

1. c3 {[%emt 0:00:00]} b6 {[%emt 0:00:23]} 2. d3 {[%emt 0:00:15]} Bb7 {[%emt 0:00:05]} 3. Nd2 {[%emt 0:00:06]} Nf6 {[%emt 0:00:16]} 4. Ngf3 {[%emt 0:00:05]} g6 {[%emt 0:00:25]} 5. g3 {[%emt 0:00:04]} Bg7 {[%emt 0:00:03]} 6. Bg2 {[%emt 0:00:03]} O-O {[%emt 0:00:08]} 7. O-O {[%emt 0:00:03]} d6 {[%emt 0:00:09]} 8. Qc2 {[%emt 0:00:06]} Nbd7 {[%emt 0:00:06]} 9. Re1 {[%emt 0:00:17]} e6 {[%emt 0:00:08]} 10. b3 {[%emt 0:00:07]} Qe7 {[%emt 0:00:05]} 11. Bb2 {[%emt 0:00:04]} 1/2-1/2

[Event "7th Capablanca Memorial GM 2019"]
[Site "Anogia"]
[Date "2019.09.16"]
[Round "6.3"]
[White "Audi Ameya"]
[Black "Dushyant Sharma"]
[Result "1-0"]
[ECO "C50"]
[WhiteElo "2329"]
[BlackElo "2242"]
[Annotator "ChessBase"]
[PlyCount "129"]
[EventDate "2019.09.11"]
[EventType "tourn"]
[EventCountry "GRE"]
[SourceTitle "playchess.com"]
[Source "ChessBase"]
[SourceQuality "1"]
[TimeControl "40/5400+30:1800+30"]

1. e4 {[%emt 0:00:00]} e5 {[%emt 0:00:00]} 2. Nf3 {[%emt 0:00:00]} Nc6 {[%emt 0:00:00]} 3. Bc4 {[%emt 0:00:00]} Bc5 {[%emt 0:00:00]} 4. O-O {[%emt 0:00:00]} Nf6 {[%emt 0:00:06]} 5. Re1 {[%emt 0:00:48]} O-O {[%emt 0:00:54]} 6. d3 {[%emt 0:00:07]} a6 {[%emt 0:07:36]} 7. c3 {[%emt 0:00:44]} d6 {[%emt 0:07:25]} 8. a4 {[%emt 0:00:18]} Ba7 {[%emt 0:00:28]} 9. h3 {[%emt 0:04:38]} h6 {[%emt 0:02:01]} 10. Nbd2 {[%emt 0:00:50]} Ne7 {[%emt 0:02:25]} 11. Nf1 {[%emt 0:01:01]} Ng6 {[%emt 0:00:12]} 12. Ng3 {[%emt 0:00:03]} Be6 {[%emt 0:01:21]} 13. Bxe6 {[%emt 0:10:59]} fxe6 {[%emt 0:00:07]} 14. Qb3 {[%emt 0:00:05]} Qc8 {[%emt 0:04:10]} 15. d4 {[%emt 0:02:56]} exd4 {[%emt 0:03:19]} 16. Nxd4 {[%emt 0:06:53]} Re8 {[%emt 0:00:55]} 17. Nf3 {[%emt 0:06:02]} d5 {[%emt 0:05:04]} 18. Qc2 {[%emt 0:02:40]} Nf8 {[%emt 0:07:18]} 19. a5 {[%emt 0:03:15]} c6 {[%emt 0:03:12]} 20. e5 {[%emt 0:01:56]} N6h7 {[%emt 0:04:02]} 21. Ra4 {[%emt 0:00:36]} Re7 {[%emt 0:01:11]} 22. Rg4 {[%emt 0:08:52]} Kh8 {[%emt 0:00:38]} 23. h4 {[%emt 0:00:03]} Qe8 {[%emt 0:04:03]} 24. h5 {[%emt 0:00:28]} Rf7 {[%emt 0:01:01]} 25. Re2 {[%emt 0:00:49]} Nd7 {[%emt 0:05:36]} 26. Nh4 {[%emt 0:01:10]} Nhf8 {[%emt 0:00:28]} 27. Ng6+ {[%emt 0:12:02]} Nxg6 {[%emt 0:01:59]} 28. hxg6 {[%emt 0:01:02]} Rxf2 {[%emt 0:07:19]} 29. Rxf2 {[%emt 0:00:08]} Bxf2+ {[%emt 0:00:52]} 30. Kxf2 {[%emt 0:09:46]} Nxe5 {[%emt 0:00:12]} 31. Rb4 {[%emt 0:00:09]} Qe7 {[%emt 0:00:47]} 32. Kg1 {[%emt 0:06:47]} Rf8 {[%emt 0:01:29]} 33. Rf4 {[%emt 0:03:16]} Rf6 {[%emt 0:01:37]} 34. Be3 {[%emt 0:07:15]} Nxg6 {[%emt 0:02:34]} 35. Rxf6 {[%emt 0:00:06]} Qxf6 {[%emt 0:00:07]} 36. Nh5 {[%emt 0:00:16]} Qh4 {[%emt 0:01:37]} 37. Qe2 {[%emt 0:01:53]} Kh7 {[%emt 0:08:30]} 38. Bd4 {[%emt 0:04:52]} e5 {[%emt 0:00:47]} 39. Bf2 {[%emt 0:00:38]} Qg5 {[%emt 0:01:17]} 40. Be3 {[%emt 0:00:00]} Qh4 {[%emt 0:00:00]} 41. Qf3 {[%emt 0:08:42]} Qe1+ {[%emt 0:17:39]} 42. Kh2 {[%emt 0:00:06]} Qh4+ {[%emt 0:00:40]} 43. Qh3 {[%emt 0:00:04]} Qe7 {[%emt 0:01:09]} 44. Qf5 {[%emt 0:10:16]} Qh4+ {[%emt 0:00:11]} 45. Qh3 {[%emt 0:00:03]} Qe7 {[%emt 0:00:09]} 46. Ng3 {[%emt 0:00:08]} Qf6 {[%emt 0:10:26]} 47. Nf5 {[%emt 0:00:22]} c5 {[%emt 0:05:45]} 48. g4 {[%emt 0:04:54]} Nf4 {[%emt 0:00:09]} 49. Bxf4 {[%emt 0:03:48]} exf4 {[%emt 0:00:02]} 50. Qh4 {[%emt 0:00:09]} g5 {[%emt 0:01:38]} 51. Qe1 {[%emt 0:01:26]} h5 {[%emt 0:00:38]} 52. Qe8 {[%emt 0:01:00]} hxg4 {[%emt 0:01:57]} 53. Qd7+ {[%emt 0:00:17]} Kh8 {[%emt 0:03:54]} 54. Qxd5 {[%emt 0:04:46]} g3+ {[%emt 0:00:30]} 55. Kg1 {[%emt 0:00:17]} Qf8 {[%emt 0:06:50]} 56. Qd7 {[%emt 0:02:21]} Kg8 {[%emt 0:01:29]} 57. Ne7+ {[%emt 0:02:33]} Kf7 {[%emt 0:01:23]} 58. Nc6+ {[%emt 0:00:52]} Kg8 {[%emt 0:00:55]} 59. Ne5 {[%emt 0:00:09]} Qf6 {[%emt 0:00:22]} 60. Qc8+ {[%emt 0:00:16]} Kg7 {[%emt 0:00:31]} 61. Qxb7+ {[%emt 0:00:03]} Kg8 {[%emt 0:00:38]} 62. Qb8+ {[%emt 0:00:22]} Kh7 {[%emt 0:00:26]} 63. Qc7+ {[%emt 0:00:10]} Kg8 {[%emt 0:00:10]} 64. Qxc5 {[%emt 0:00:10]} Qd8 {[%emt 0:01:06]} 65. Qc4+ {[%emt 0:00:14]} 1-0

[Event "7th Capablanca Memorial GM 2019"]
[Site "Anogia"]
[Date "2019.09.16"]
[Round "6.4"]
[White "Patrelakis, Evaggelos"]
[Black "Manish Anto Cristiano F"]
[Result "1/2-1/2"]
[ECO "B99"]
[WhiteElo "2202"]
[BlackElo "2364"]
[Annotator "ChessBase"]
[PlyCount "52"]
[EventDate "2019.09.11"]
[EventType "tourn"]
[EventCountry "GRE"]
[SourceTitle "playchess.com"]
[Source "ChessBase"]
[SourceQuality "1"]
[TimeControl "40/5400+30:1800+30"]

1. e4 {[%emt 0:00:01]} c5 {[%emt 0:00:00]} 2. Nf3 {[%emt 0:00:14]} d6 {[%emt 0:00:01]} 3. d4 {[%emt 0:00:07]} cxd4 {[%emt 0:00:32]} 4. Nxd4 {[%emt 0:00:08]} Nf6 {[%emt 0:00:30]} 5. Nc3 {[%emt 0:00:29]} a6 {[%emt 0:00:30]} 6. Bg5 {[%emt 0:00:09]} e6 {[%emt 0:00:32]} 7. f4 {[%emt 0:00:15]} Nbd7 {[%emt 0:00:28]} 8. Qf3 {[%emt 0:00:09]} Qc7 {[%emt 0:00:31]} 9. O-O-O {[%emt 0:00:09]} b5 {[%emt 0:00:30]} 10. Bd3 {[%emt 0:01:08]} Bb7 {[%emt 0:00:29]} 11. Rhe1 {[%emt 0:00:09]} Be7 {[%emt 0:00:31]} 12. Qg3 {[%emt 0:00:32]} b4 {[%emt 0:00:32]} 13. Nd5 {[%emt 0:00:13]} exd5 {[%emt 0:00:27]} 14. exd5 {[%emt 0:00:10]} Kd8 {[%emt 0:00:32]} 15. Nc6+ {[%emt 0:02:18]} Bxc6 {[%emt 0:00:29]} 16. dxc6 {[%emt 0:00:09]} Nc5 {[%emt 0:00:29]} 17. Bc4 {[%emt 0:09:21]} Kc8 {[%emt 0:14:42]} 18. Bh4 {[%emt 0:10:13]} g6 {[%emt 0:12:20]} 19. Bxf7 {[%emt 0:03:23]} Kb8 {[%emt 0:04:21]} 20. Qe3 {[%emt 0:15:01]} Bd8 {[%emt 0:10:51]} 21. Qd4 {[%emt 0:16:21]} Rf8 {[%emt 0:04:30]} 22. Qxb4+ {[%emt 0:09:10]} Ka7 {[%emt 0:01:36]} 23. Bf2 {[%emt 0:07:41]} Rb8 {[%emt 0:05:41]} 24. Bxc5+ {[%emt 0:03:35]} dxc5 {[%emt 0:00:19]} 25. Qxc5+ {[%emt 0:00:02]} Qb6 {[%emt 0:04:57]} 26. Qxb6+ {[%emt 0:00:22]} Kxb6 {[%emt 0:02:18]} 1/2-1/2

[Event "7th Capablanca Memorial GM 2019"]
[Site "Anogia"]
[Date "2019.09.16"]
[Round "6.5"]
[White "Ioannidis, Evgenios"]
[Black "Anagnostopoulos, Konstantinos"]
[Result "1-0"]
[ECO "D38"]
[WhiteElo "2390"]
[BlackElo "2322"]
[Annotator "NA"]
[PlyCount "41"]
[EventDate "2019.09.11"]
[EventType "tourn"]
[EventCountry "GRE"]
[SourceTitle "playchess.com"]
[Source "ChessBase"]
[SourceQuality "1"]
[TimeControl "40/5400+30:1800+30"]

1. d4 {[%emt 0:00:52]} Nf6 {[%emt 0:01:32]} 2. c4 {[%emt 0:00:28]} e6 {[%emt 0:00:08]} 3. Nf3 {[%emt 0:03:48]} d5 {[%emt 0:00:10]} 4. Nc3 {[%emt 0:00:12]} Bb4 {[%emt 0:00:05]} 5. Qa4+ {[%emt 0:00:53]} Nc6 {[%emt 0:00:23]} 6. Bg5 {[%emt 0:00:07]} h6 {[%emt 0:04:02]} 7. Bxf6 {[%emt 0:00:07]} Qxf6 {[%emt 0:00:17]} 8. cxd5 {[%emt 0:00:49]} exd5 {[%emt 0:01:53]} 9. e3 {[%emt 0:00:22]} O-O {[%emt 0:00:57]} 10. Rc1 {[%emt 0:00:20]} Qg6 {[%emt 0:06:04]} 11. Qd1 {[%emt 0:01:12]} f5 {[%emt 0:23:36]} 12. g3 {[%emt 0:09:09]} f4 {[%emt 0:05:25]} 13. gxf4 {[%emt 0:02:22]} Bg4 {[%emt 0:00:43]} 14. Be2 {[%emt 0:05:52]} Rae8 {[%emt 0:17:39]} 15. Rg1 {[%emt 0:09:29]} Qh5 {[%emt 0:04:57]} 16. Ne5 {[%emt 0:04:26]} Bxe2 {[%emt 0:00:23]} 17. Qxe2 {[%emt 0:00:09]} Bxc3+ {[%emt 0:04:05]} 18. Rxc3 {[%emt 0:05:04]} Qxh2 {[%emt 0:08:24]} 19. Qg4 {[%emt 0:07:17]} g5 {[%emt 0:00:10]} 20. Rc1 {[%emt 0:06:27]} Nxd4 {[%emt 0:08:29]} 21. Rg2 {[%emt 0:01:19]} 1-0

[Event "7th Capablanca Memorial GM 2019"]
[Site "Anogia"]
[Date "2019.09.17"]
[Round "7.1"]
[White "Anagnostopoulos, Konstantinos"]
[Black "Moiseenko, Vadim"]
[Result "1-0"]
[ECO "A35"]
[WhiteElo "2322"]
[BlackElo "2543"]
[Annotator "RC"]
[PlyCount "76"]
[EventDate "2019.09.11"]
[EventType "tourn"]
[EventCountry "GRE"]
[SourceTitle "playchess.com"]
[Source "ChessBase"]
[SourceQuality "1"]
[TimeControl "40/5400+30:1800+30"]

1. c4 {[%emt 0:01:02]} c5 {[%emt 0:05:49]} 2. Nf3 {[%emt 0:00:07]} Nf6 {[%emt 0:00:15]} 3. Nc3 {[%emt 0:00:07]} Nc6 {[%emt 0:00:07]} 4. e3 {[%emt 0:00:45]} g6 {[%emt 0:00:07]} 5. d4 {[%emt 0:00:05]} cxd4 {[%emt 0:00:03]} 6. exd4 {[%emt 0:00:07]} d5 {[%emt 0:00:03]} 7. cxd5 {[%emt 0:00:22]} Nxd5 {[%emt 0:00:04]} 8. Qb3 {[%emt 0:00:37]} Nxc3 {[%emt 0:00:06]} 9. Bc4 {[%emt 0:02:02]} Nd5 {[%emt 0:00:09]} 10. Bxd5 {[%emt 0:00:05]} e6 {[%emt 0:00:04]} 11. Bxc6+ {[%emt 0:00:07]} bxc6 {[%emt 0:00:04]} 12. O-O {[%emt 0:01:05]} Be7 {[%emt 0:00:09]} 13. Bd2 {[%emt 0:11:54]} Qd5 {[%emt 0:00:32]} 14. Rfe1 {[%emt 0:00:23]} f6 {[%emt 0:02:18]} 15. Rac1 {[%emt 0:04:30]} Bd7 {[%emt 0:14:10]} 16. Rc4 {[%emt 0:03:31]} O-O {[%emt 0:02:43]} 17. Bb4 {[%emt 0:06:39]} Rab8 {[%emt 0:01:10]} 18. Qc3 {[%emt 0:06:40]} Bxb4 {[%emt 0:00:05]} 19. Rxb4 {[%emt 0:00:03]} Qxa2 {[%emt 0:01:09]} 20. Nd2 {[%emt 0:08:23]} a5 {[%emt 0:07:57]} 21. Rxb8 {[%emt 0:01:00]} Rxb8 {[%emt 0:00:04]} 22. Ne4 {[%emt 0:07:55]} Qxb2 {[%emt 0:04:24]} 23. Nxf6+ {[%emt 0:02:55]} Kg7 {[%emt 0:00:05]} 24. Qxb2 {[%emt 0:00:49]} Rxb2 {[%emt 0:00:05]} 25. Nxd7 {[%emt 0:00:20]} a4 {[%emt 0:00:02]} 26. Ra1 {[%emt 0:01:14]} a3 {[%emt 0:00:07]} 27. g3 {[%emt 0:00:20]} a2 {[%emt 0:00:05]} 28. Kg2 {[%emt 0:00:03]} g5 {[%emt 0:03:06]} 29. Ne5 {[%emt 0:02:43]} Rc2 {[%emt 0:00:12]} 30. Nd3 {[%emt 0:01:56]} h5 {[%emt 0:05:57]} 31. Kf3 {[%emt 0:05:57]} Kf6 {[%emt 0:01:31]} 32. h3 {[%emt 0:03:47]} h4 {[%emt 0:00:23]} 33. gxh4 {[%emt 0:02:35]} gxh4 {[%emt 0:00:04]} 34. Ke4 {[%emt 0:04:40]} Re2+ {[%emt 0:00:55]} 35. Kf4 {[%emt 0:00:14]} Rc2 {[%emt 0:00:09]} 36. f3 {[%emt 0:01:28]} Rd2 {[%emt 0:02:19]} 37. Ke3 {[%emt 0:01:06]} Rc2 {[%emt 0:00:04]} 38. Nc1 {[%emt 0:05:48]} Rb2 {[%emt 0:04:14]} 1-0